fUST/lending_fUST_20250326
["ID","MTS","AMOUNT","RATE_DAILY","PERIOD"]
[356686770,1742953833299,-500.0,0.00011232,2]
[356686771,1742953833309,-500.0,0.00011232,2]
[356686772,1742953833318,-500.0,0.00011232,2]
[356686773,1742953833328,-500.0,0.00011232,2]
[356686774,1742953833338,-500.0,0.00011232,2]
[356686775,1742953833348,-359.72173658,0.00011232,2]
[356686776,1742953833359,-500.0,0.00011232,2]
[356686777,1742953833370,-500.0,0.00011232,2]
[356686778,1742953833380,-500.0,0.00011232,2]
[356686779,1742953833390,-518.09,0.00011232,2]
[356686780,1742953833401,-500.0,0.00011232,2]
[356686781,1742953833411,-532.43,0.00011232,2]
[356686782,1742953833420,-500.0,0.00011232,2]
[356686783,1742953833429,-500.0,0.00011232,2]
[356686784,1742953833441,-500.0,0.00011232,2]
[356686785,1742953833451,-1228.8,0.00011232,2]
[356686786,1742953833461,-500.0,0.00011232,2]
[356686787,1742953833471,-516.89,0.00011232,2]
[356686788,1742953833481,-89.18806031,0.00011232,2]
[356686789,1742953833494,-471.43554143,0.00011232,2]
[356686801,1742953839832,-278.81442371,0.00011231,2]
[356686802,1742953839841,-500.0,0.00011231,2]
[356686803,1742953839850,-840.35639826,0.00011232,2]
[356686804,1742953839860,-500.0,0.00011232,2]
[356686805,1742953839869,-500.0,0.00011232,2]
[356686806,1742953839878,-756.24,0.00011232,2]
[356686807,1742953839887,-596.82,0.00011232,2]
[356686808,1742953839897,-500.0,0.00011232,2]
[356686809,1742953839907,-1948.12,0.00011232,2]
[356686810,1742953839916,-523.24,0.00011232,2]
[356686811,1742953839926,-609.88,0.00011232,2]
[356686812,1742953839935,-500.0,0.00011232,2]
[356686813,1742953839944,-195.95514442,0.00011232,2]
[356686861,1742954498317,-162.17189148,0.00010858,2]
[356686862,1742954498339,-601.57581741,0.00010956,2]
[356686863,1742954498360,-300.0,0.00010956,2]
[356686864,1742954498382,-72484.55229111,0.00010957,2]
[356686866,1742954549890,-300.0,0.00010162,2]
[356686869,1742954839142,-9700.0,0.00010162,2]
[356686870,1742954839166,-300.0,0.00010955,2]
[356686871,1742954839189,-500.0,0.00010956,2]
[356686872,1742954839213,-500.0,0.00010956,2]
[356686873,1742954839236,-27515.44770889,0.00010957,2]
[356686874,1742954839260,-421.10307219,0.00010957,2]
[356686875,1742954839284,-500.0,0.00010958,2]
[356686876,1742954839305,-500.0,0.00010958,2]
[356686877,1742954839327,-500.0,0.00010958,2]
[356686878,1742954839349,-475.92717118,0.00010958,2]
[356686879,1742954839371,-500.0,0.00010958,2]
[356686880,1742954839393,-500.0,0.00010958,2]
[356686881,1742954839414,-500.0,0.00010958,2]
[356686882,1742954839435,-500.0,0.00010958,2]
[356686883,1742954839458,-488.06729265,0.00010958,2]
[356686884,1742954839479,-500.0,0.00010958,2]
[356686885,1742954839500,-500.0,0.00010958,2]
[356686886,1742954839521,-500.0,0.00010958,2]
[356686887,1742954839542,-500.0,0.00010958,2]
[356686888,1742954839566,-500.0,0.00010958,2]
[356686889,1742954839587,-380.91972371,0.00010958,2]
[356686890,1742954839608,-500.0,0.00010958,2]
[356686891,1742954839630,-438.53784457,0.00010958,2]
[356686892,1742954839652,-500.0,0.00010958,2]
[356686893,1742954839673,-517.57018067,0.00010958,2]
[356686894,1742954839862,-500.0,0.00010958,2]
[356686895,1742954839883,-500.0,0.00010958,2]
[356686896,1742954839903,-500.0,0.00010958,2]
[356686897,1742954839923,-500.0,0.00010958,2]
[356686898,1742954839948,-1126.4,0.00010958,2]
[356686899,1742954839968,-500.0,0.00010958,2]
[356686900,1742954839991,-500.0,0.00010958,2]
[356686901,1742954840013,-549.01170652,0.00010958,2]
[356686902,1742954840035,-195.77836577,0.00010958,2]
[356686903,1742954840055,-415.089417,0.00010958,2]
[356686904,1742954840076,-1284.23,0.00010958,2]
[356686905,1742954840096,-500.0,0.00010958,2]
[356686906,1742954840117,-500.0,0.00010958,2]
[356686907,1742954840137,-1785.78,0.00010958,2]
[356686908,1742954840158,-500.0,0.00010958,2]
[356686909,1742954840177,-500.0,0.00010958,2]
[356686910,1742954840197,-875.91,0.00010958,2]
[356686911,1742954840218,-829.59,0.00010958,2]
[356686912,1742954840238,-500.0,0.00010958,2]
[356686913,1742954840259,-500.0,0.00010958,2]
[356686914,1742954840280,-500.0,0.00010958,2]
[356686915,1742954840300,-500.0,0.00010958,2]
[356686916,1742954840321,-500.0,0.00010958,2]
[356686917,1742954840341,-380.16528292,0.00010958,2]
[356686918,1742954840362,-161.50186488,0.00010958,2]
[356686919,1742954840383,-759.65,0.00010958,2]
[356686920,1742954840404,-500.0,0.00010958,2]
[356686921,1742954840424,-663.02,0.00010958,2]
[356686922,1742954840443,-500.0,0.00010958,2]
[356686923,1742954840463,-507.38954809,0.00010958,2]
[356686924,1742954840483,-500.0,0.00010958,2]
[356686925,1742954840504,-500.0,0.00010958,2]
[356686926,1742954840525,-500.0,0.00010958,2]
[356686927,1742954840546,-500.0,0.00010958,2]
[356686928,1742954840567,-500.0,0.00010958,2]
[356686929,1742954840587,-500.0,0.00010958,2]
[356686930,1742954840606,-500.0,0.00010958,2]
[356686931,1742954840626,-1190.97,0.00010958,2]
[356686932,1742954840646,-206.80867055,0.00010958,2]
[356686933,1742954840666,-165.184945,0.00010959,2]
[356686934,1742954840685,-1498.8695792,0.0001116,2]
[356686935,1742954840704,-500.0,0.0001123,2]
[356686936,1742954840723,-547.08,0.0001123,2]
[356686937,1742954840744,-693.22,0.00011231,2]
[356686938,1742954840763,-502.87611609,0.00011231,2]
[356686939,1742954840784,-500.0,0.00011231,2]
[356686940,1742954840804,-500.0,0.00011231,2]
[356686941,1742954840824,-500.0,0.00011231,2]
[356686942,1742954840844,-500.0,0.00011231,2]
[356686943,1742954840863,-500.0,0.00011231,2]
[356686944,1742954840883,-697.2,0.00011231,2]
[356686945,1742954840902,-500.0,0.00011231,2]
[356686946,1742954840921,-500.0,0.00011231,2]
[356686947,1742954840941,-488.54843319,0.00011231,2]
[356686948,1742954840963,-500.0,0.00011232,2]
[356686949,1742954840983,-500.0,0.00011232,2]
[356686950,1742954841005,-528.76680348,0.00011232,2]
[356686951,1742954841024,-500.0,0.00011232,2]
[356686952,1742954841045,-500.0,0.00011232,2]
[356686953,1742954841065,-500.0,0.00011232,2]
[356686954,1742954841084,-586.77724798,0.00011232,2]
[356686955,1742954841105,-500.0,0.00011232,2]
[356686956,1742954841125,-500.0,0.00011232,2]
[356686957,1742954841146,-500.0,0.00011232,2]
[356686958,1742954841166,-500.0,0.00011232,2]
[356686959,1742954841185,-500.0,0.00011232,2]
[356686960,1742954841204,-500.0,0.00011232,2]
[356686961,1742954841224,-500.0,0.00011232,2]
[356686962,1742954841246,-198.86097641,0.00011232,2]
[356686963,1742954841266,-500.0,0.00011232,2]
[356686964,1742954841286,-500.0,0.00011232,2]
[356686965,1742954841307,-500.0,0.00011232,2]
[356686966,1742954841327,-1126.4,0.00011232,2]
[356686967,1742954841347,-500.0,0.00011232,2]
[356686968,1742954841367,-500.0,0.00011232,2]
[356686969,1742954841388,-1284.23,0.00011232,2]
[356686970,1742954841408,-500.0,0.00011232,2]
[356686971,1742954841429,-1785.78,0.00011232,2]
[356686972,1742954841448,-500.0,0.00011232,2]
[356686973,1742954841468,-500.0,0.00011232,2]
[356686974,1742954841488,-875.91,0.00011232,2]
[356686975,1742954841507,-829.59,0.00011232,2]
[356686976,1742954841527,-500.0,0.00011232,2]
[356686977,1742954841546,-461.17271365,0.00011232,2]
[356686978,1742954841566,-472.28440098,0.00011232,2]
[356686979,1742954841586,-500.0,0.00011232,2]
[356686980,1742954841606,-500.0,0.00011232,2]
[356686981,1742954841626,-759.65,0.00011232,2]
[356686982,1742954841647,-511.31419442,0.00011232,2]
[356686983,1742954841667,-663.02,0.00011232,2]
[356686984,1742954841686,-500.0,0.00011232,2]
[356686985,1742954841705,-500.0,0.00011232,2]
[356686986,1742954841725,-500.0,0.00011232,2]
[356686987,1742954841746,-500.0,0.00011232,2]
[356686988,1742954841765,-168.30383301,0.00011232,2]
[356686989,1742954841785,-500.0,0.00011232,2]
[356686990,1742954841805,-500.0,0.00011232,2]
[356686991,1742954841824,-500.0,0.00011232,2]
[356686992,1742954841843,-1190.97,0.00011232,2]
[356686993,1742954841862,-500.0,0.00011504,2]
[356686994,1742954841882,-547.08,0.00011504,2]
[356686995,1742954841901,-693.22,0.00011505,2]
[356686996,1742954841921,-500.0,0.00011505,2]
[356686997,1742954841942,-500.0,0.00011505,2]
[356686998,1742954841965,-500.0,0.00011505,2]
[356686999,1742954841986,-500.0,0.00011505,2]
[356687000,1742954842006,-500.0,0.00011505,2]
[356687001,1742954842025,-697.2,0.00011505,2]
[356687002,1742954842045,-500.0,0.00011505,2]
[356687003,1742954842065,-500.0,0.00011505,2]
[356687004,1742954842085,-641.65399504,0.00011506,2]
[356687005,1742954842105,-500.0,0.00011506,2]
[356687006,1742954842126,-192.25813153,0.00011506,2]
[356687007,1742954842146,-500.0,0.00011506,2]
[356687008,1742954842166,-500.0,0.00011506,2]
[356687009,1742954842187,-500.0,0.00011506,2]
[356687010,1742954842207,-500.0,0.00011506,2]
[356687011,1742954842227,-500.0,0.00011506,2]
[356687012,1742954842247,-153.22205885,0.00011506,2]
[356687013,1742954842276,-524.92397988,0.00011506,2]
[356687014,1742954842296,-500.0,0.00011506,2]
[356687015,1742954842319,-465.97825992,0.00011506,2]
[356687016,1742954842341,-500.0,0.00011506,2]
[356687017,1742954842363,-500.0,0.00011506,2]
[356687018,1742954842387,-500.0,0.00011506,2]
[356687019,1742954842411,-1126.4,0.00011506,2]
[356687020,1742954842433,-500.0,0.00011506,2]
[356687021,1742954842455,-500.0,0.00011506,2]
[356687022,1742954842481,-1284.23,0.00011506,2]
[356687023,1742954842502,-649.85409573,0.00011506,2]
[356687024,1742954842523,-1785.78,0.00011506,2]
[356687025,1742954842544,-500.0,0.00011506,2]
[356687026,1742954842573,-334.37970906,0.00011506,2]
[356687027,1742954842596,-875.91,0.00011506,2]
[356687028,1742954842621,-829.59,0.00011506,2]
[356687029,1742954842643,-500.0,0.00011506,2]
[356687030,1742954842666,-500.0,0.00011506,2]
[356687031,1742954842689,-500.0,0.00011506,2]
[356687032,1742954842713,-759.65,0.00011506,2]
[356687033,1742954842737,-663.02,0.00011506,2]
[356687034,1742954842758,-500.0,0.00011506,2]
[356687035,1742954842783,-232.9053409,0.00011506,2]
[356687036,1742954842808,-456.3264281,0.00011506,2]
[356687037,1742954842831,-500.0,0.00011506,2]
[356687038,1742954842854,-500.0,0.00011506,2]
[356687039,1742954842878,-500.0,0.00011506,2]
[356687040,1742954842901,-500.0,0.00011506,2]
[356687041,1742954842924,-1190.97,0.00011506,2]
[356687042,1742954842945,-500.0,0.00011654,2]
[356687043,1742954842974,-162.17189145,0.00011678,2]
[356687044,1742954842999,-471.43554143,0.0001168,2]
[356687045,1742954843027,-648.76005444,0.00011733,2]
[356687046,1742954843051,-500.0,0.00011778,2]
[356687047,1742954843073,-547.08,0.00011778,2]
[356687048,1742954843096,-693.22,0.00011779,2]
[356687049,1742954843120,-500.0,0.00011779,2]
[356687050,1742954843144,-500.0,0.00011779,2]
[356687051,1742954843168,-500.0,0.00011779,2]
[356687052,1742954843191,-500.0,0.00011779,2]
[356687053,1742954843213,-500.0,0.00011779,2]
[356687054,1742954843238,-697.2,0.00011779,2]
[356687055,1742954843262,-500.0,0.00011779,2]
[356687056,1742954843284,-500.0,0.00011779,2]
[356687057,1742954843310,-500.0,0.0001178,2]
[356687058,1742954843335,-500.0,0.0001178,2]
[356687059,1742954843359,-500.0,0.0001178,2]
[356687060,1742954843386,-500.0,0.0001178,2]
[356687061,1742954843410,-500.0,0.0001178,2]
[356687062,1742954843434,-500.0,0.0001178,2]
[356687063,1742954843459,-150.24,0.0001178,2]
[356687064,1742954843487,-500.0,0.0001178,2]
[356687065,1742954843512,-500.0,0.0001178,2]
[356687066,1742954843540,-500.0,0.0001178,2]
[356687067,1742954843564,-500.0,0.0001178,2]
[356687068,1742954843590,-1126.4,0.0001178,2]
[356687069,1742954843616,-500.0,0.0001178,2]
[356687071,1742954843799,-500.0,0.0001178,2]
[356687072,1742954843827,-1284.23,0.0001178,2]
[356687073,1742954843853,-1785.78,0.0001178,2]
[356687074,1742954843878,-455.94643051,0.0001178,2]
[356687075,1742954843903,-875.91,0.0001178,2]
[356687076,1742954843927,-829.59,0.0001178,2]
[356687077,1742954843961,-500.0,0.0001178,2]
[356687078,1742954843990,-500.0,0.0001178,2]
[356687079,1742954844014,-500.0,0.0001178,2]
[356687080,1742954844040,-150.77218128,0.0001178,2]
[356687081,1742954844064,-759.65,0.0001178,2]
[356687082,1742954844087,-663.02,0.0001178,2]
[356687083,1742954844107,-500.0,0.0001178,2]
[356687084,1742954844130,-500.0,0.0001178,2]
[356687085,1742954844151,-500.0,0.0001178,2]
[356687086,1742954844173,-500.0,0.0001178,2]
[356687087,1742954844194,-500.0,0.0001178,2]
[356687088,1742954844214,-1190.97,0.0001178,2]
[356687089,1742954844234,-500.0,0.00011806,2]
[356687090,1742954844255,-500.0,0.0001183,2]
[356687091,1742954844276,-150.24,0.00011917,2]
[356687092,1742954844304,-436.5835185,0.00011999,3]
[356687093,1742954844324,-13148.0,0.00012,2]
[356687094,1742954844347,-420.0,0.00012039,2]
[356687095,1742954844368,-500.0,0.00012052,2]
[356687096,1742954844391,-547.08,0.00012052,2]
[356687097,1742954844412,-693.22,0.00012053,2]
[356687098,1742954844433,-500.0,0.00012053,2]
[356687099,1742954844453,-500.0,0.00012053,2]
[356687100,1742954844475,-500.0,0.00012053,2]
[356687101,1742954844497,-500.0,0.00012053,2]
[356687102,1742954844518,-392.74611537,0.00012053,2]
[356687103,1742954844539,-697.2,0.00012053,2]
[356687104,1742954844561,-500.0,0.00012053,2]
[356687105,1742954844582,-500.0,0.00012053,2]
[356687106,1742954844605,-150.24,0.00012054,2]
[356687107,1742954844626,-500.0,0.00012054,2]
[356687108,1742954844646,-500.0,0.00012054,2]
[356687109,1742954844666,-500.0,0.00012054,2]
[356687110,1742954844686,-500.0,0.00012054,2]
[356687111,1742954844706,-500.0,0.00012054,2]
[356687112,1742954844727,-500.0,0.00012054,2]
[356687113,1742954844748,-414.82844799,0.00012054,2]
[356687114,1742954844768,-500.0,0.00012054,2]
[356687115,1742954844789,-550.15204736,0.00012054,2]
[356687116,1742954844809,-500.0,0.00012054,2]
[356687117,1742954844830,-1126.4,0.00012054,2]
[356687118,1742954844851,-500.0,0.00012054,2]
[356687119,1742954844873,-500.0,0.00012054,2]
[356687120,1742954844893,-1284.23,0.00012054,2]
[356687121,1742954844913,-1785.78,0.00012054,2]
[356687122,1742954844934,-875.91,0.00012054,2]
[356687123,1742954844957,-829.59,0.00012054,2]
[356687124,1742954844978,-500.0,0.00012054,2]
[356687125,1742954845001,-500.0,0.00012054,2]
[356687126,1742954845023,-500.0,0.00012054,2]
[356687127,1742954845046,-759.65,0.00012054,2]
[356687128,1742954845067,-663.02,0.00012054,2]
[356687129,1742954845086,-500.0,0.00012054,2]
[356687130,1742954845107,-500.0,0.00012054,2]
[356687131,1742954845131,-500.0,0.00012054,2]
[356687132,1742954845151,-500.0,0.00012054,2]
[356687133,1742954845171,-500.0,0.00012054,2]
[356687134,1742954845192,-1190.97,0.00012054,2]
[356687135,1742954845212,-1000.0,0.00012157,2]
[356687136,1742954845232,-199.99497053,0.00012191,2]
[356687137,1742954845258,-156.0,0.000123,2]
[356687138,1742954845279,-2100.0,0.0001232,2]
[356687139,1742954845300,-500.0,0.00012326,2]
[356687140,1742954845321,-547.08,0.00012326,2]
[356687141,1742954845342,-693.22,0.00012327,2]
[356687142,1742954845362,-500.0,0.00012327,2]
[356687143,1742954845382,-500.0,0.00012327,2]
[356687144,1742954845402,-500.0,0.00012327,2]
[356687145,1742954845422,-500.0,0.00012327,2]
[356687146,1742954845442,-697.2,0.00012327,2]
[356687147,1742954845462,-500.0,0.00012327,2]
[356687148,1742954845481,-500.0,0.00012327,2]
[356687149,1742954845503,-500.0,0.00012328,2]
[356687150,1742954845525,-500.0,0.00012328,2]
[356687151,1742954845545,-500.0,0.00012328,2]
[356687152,1742954845565,-500.0,0.00012328,2]
[356687153,1742954845587,-500.0,0.00012328,2]
[356687154,1742954845608,-500.0,0.00012328,2]
[356687155,1742954845628,-630.00091045,0.00012328,2]
[356687156,1742954845648,-500.0,0.00012328,2]
[356687157,1742954845671,-1126.4,0.00012328,2]
[356687158,1742954845691,-500.0,0.00012328,2]
[356687159,1742954845712,-500.0,0.00012328,2]
[356687160,1742954845736,-1284.23,0.00012328,2]
[356687161,1742954845757,-1785.78,0.00012328,2]
[356687162,1742954845779,-875.91,0.00012328,2]
[356687163,1742954845799,-829.59,0.00012328,2]
[356687164,1742954845818,-500.0,0.00012328,2]
[356687165,1742954845838,-500.0,0.00012328,2]
[356687166,1742954845858,-500.0,0.00012328,2]
[356687167,1742954845878,-759.65,0.00012328,2]
[356687168,1742954845898,-663.02,0.00012328,2]
[356687169,1742954845918,-445.06045298,0.00012328,2]
[356687170,1742954845938,-500.0,0.00012328,2]
[356687171,1742954845962,-500.0,0.00012328,2]
[356687172,1742954845982,-500.0,0.00012328,2]
[356687173,1742954846003,-500.0,0.00012328,2]
[356687174,1742954846023,-1190.97,0.00012328,2]
[356687175,1742954846044,-2100.0,0.0001239,2]
[356687176,1742954846064,-608.97,0.000125,2]
[356687177,1742954846085,-3276.54167822,0.000125,2]
[356687178,1742954846106,-500.0,0.00012506,2]
[356687179,1742954846128,-2100.0,0.00012517,2]
[356687180,1742954846148,-2100.0,0.00012532,2]
[356687181,1742954846169,-500.0,0.00012593,2]
[356687182,1742954846189,-600.90452438,0.00012593,2]
[356687183,1742954846209,-500.0,0.00012593,2]
[356687184,1742954846231,-500.0,0.000126,2]
[356687185,1742954846252,-547.08,0.000126,2]
[356687186,1742954846272,-300.0,0.000126,4]
[356687187,1742954846292,-693.22,0.00012601,2]
[356687188,1742954846314,-500.0,0.00012601,2]
[356687189,1742954846336,-500.0,0.00012601,2]
[356687190,1742954846358,-500.0,0.00012601,2]
[356687191,1742954846379,-614.2,0.00012601,2]
[356687192,1742954846400,-697.2,0.00012601,2]
[356687193,1742954846421,-313.18357686,0.00012601,2]
[356687194,1742954846442,-500.0,0.00012601,2]
[356687195,1742954846463,-500.0,0.00012602,2]
[356687196,1742954846485,-500.0,0.00012602,2]
[356687197,1742954846505,-500.0,0.00012602,2]
[356687198,1742954846526,-500.0,0.00012602,2]
[356687199,1742954846548,-500.0,0.00012602,2]
[356687200,1742954846568,-500.0,0.00012602,2]
[356687201,1742954846591,-500.0,0.00012602,2]
[356687202,1742954846613,-1126.4,0.00012602,2]
[356687203,1742954846635,-500.0,0.00012602,2]
[356687204,1742954846657,-500.0,0.00012602,2]
[356687205,1742954846680,-1284.23,0.00012602,2]
[356687206,1742954846701,-1785.78,0.00012602,2]
[356687207,1742954846724,-875.91,0.00012602,2]
[356687208,1742954846746,-829.59,0.00012602,2]
[356687209,1742954846769,-500.0,0.00012602,2]
[356687210,1742954846792,-302.3963688,0.00012602,2]
[356687211,1742954846813,-759.65,0.00012602,2]
[356687212,1742954846835,-663.02,0.00012602,2]
[356687213,1742954846858,-500.0,0.00012602,2]
[356687214,1742954846880,-500.0,0.00012602,2]
[356687215,1742954846902,-500.0,0.00012602,2]
[356687216,1742954846926,-191.78424093,0.00012602,2]
[356687217,1742954846951,-1190.97,0.00012602,2]
[356687218,1742954846972,-2100.0,0.00012675,2]
[356687219,1742954846992,-162.17189145,0.00012683,2]
[356687220,1742954847017,-500.0,0.00012772,2]
[356687221,1742954847038,-500.0,0.00012772,2]
[356687222,1742954847059,-500.0,0.00012772,2]
[356687223,1742954847081,-500.0,0.00012772,2]
[356687224,1742954847102,-500.0,0.00012772,2]
[356687225,1742954847122,-500.0,0.00012772,2]
[356687226,1742954847143,-500.99111064,0.00012784,2]
[356687227,1742954847165,-500.0,0.00012784,2]
[356687228,1742954847198,-500.0,0.00012784,2]
[356687229,1742954847219,-500.0,0.00012784,2]
[356687230,1742954847244,-500.0,0.00012784,2]
[356687231,1742954847265,-500.0,0.00012784,2]
[356687232,1742954847285,-500.41631654,0.00012784,2]
[356687233,1742954847306,-500.70719921,0.00012784,2]
[356687234,1742954847327,-500.0,0.00012784,2]
[356687235,1742954847347,-503.69665363,0.00012784,2]
[356687236,1742954847368,-1000.0,0.000128,3]
[356687237,1742954847389,-1000.0,0.000128,4]
[356687238,1742954847411,-2100.0,0.00012807,2]
[356687239,1742954847601,-500.0,0.00012874,2]
[356687240,1742954847622,-547.08,0.00012874,2]
[356687241,1742954847642,-693.22,0.00012875,2]
[356687242,1742954847663,-500.0,0.00012875,2]
[356687243,1742954847683,-500.0,0.00012875,2]
[356687244,1742954847703,-500.0,0.00012875,2]
[356687245,1742954847723,-697.2,0.00012875,2]
[356687246,1742954847743,-500.0,0.00012875,2]
[356687247,1742954847763,-500.0,0.00012876,2]
[356687248,1742954847784,-500.0,0.00012876,2]
[356687249,1742954847809,-500.0,0.00012876,2]
[356687250,1742954847834,-500.0,0.00012876,2]
[356687251,1742954847855,-500.0,0.00012876,2]
[356687252,1742954847875,-500.0,0.00012876,2]
[356687253,1742954847895,-500.0,0.00012876,2]
[356687254,1742954847917,-1126.4,0.00012876,2]
[356687255,1742954847938,-500.0,0.00012876,2]
[356687256,1742954847960,-500.0,0.00012876,2]
[356687257,1742954847981,-1284.23,0.00012876,2]
[356687258,1742954848004,-1785.78,0.00012876,2]
[356687259,1742954848025,-875.91,0.00012876,2]
[356687260,1742954848048,-829.59,0.00012876,2]
[356687261,1742954848068,-305.13530485,0.00012876,2]
[356687262,1742954848090,-759.65,0.00012876,2]
[356687263,1742954848111,-663.02,0.00012876,2]
[356687264,1742954848133,-500.0,0.00012876,2]
[356687265,1742954848155,-500.0,0.00012876,2]
[356687266,1742954848176,-500.0,0.00012876,2]
[356687267,1742954848196,-1190.97,0.00012876,2]
[356687268,1742954848216,-7244.21920975,0.000129,2]
[356687269,1742954848237,-500.0,0.00012911,2]
[356687270,1742954848259,-3276.54167808,0.00013107,2]
[356687271,1742954848280,-500.0,0.00013148,2]
[356687272,1742954848302,-547.08,0.00013148,2]
[356687273,1742954848322,-160.0,0.00013148,2]
[356687274,1742954848344,-418.3522718,0.00013148,2]
[356687275,1742954848365,-693.22,0.00013149,2]
[356687276,1742954848386,-500.0,0.00013149,2]
[356687277,1742954848408,-500.0,0.00013149,2]
[356687278,1742954848430,-500.0,0.00013149,2]
[356687279,1742954848450,-697.2,0.00013149,2]
[356687280,1742954848470,-500.0,0.00013149,2]
[356687281,1742954848491,-500.0,0.0001315,2]
[356687282,1742954848511,-500.0,0.0001315,2]
[356687283,1742954848534,-500.0,0.0001315,2]
[356687284,1742954848555,-324.57823727,0.0001315,2]
[356687285,1742954848575,-500.0,0.0001315,2]
[356687286,1742954848597,-500.0,0.0001315,2]
[356687287,1742954848619,-500.0,0.0001315,2]
[356687288,1742954848642,-1126.4,0.0001315,2]
[356687289,1742954848663,-500.0,0.0001315,2]
[356687290,1742954848685,-500.0,0.0001315,2]
[356687291,1742954848707,-1284.23,0.0001315,2]
[356687292,1742954848729,-1785.78,0.0001315,2]
[356687293,1742954848756,-875.91,0.0001315,2]
[356687294,1742954848779,-829.59,0.0001315,2]
[356687295,1742954848801,-759.65,0.0001315,2]
[356687296,1742954848822,-663.02,0.0001315,2]
[356687297,1742954848844,-500.0,0.0001315,2]
[356687298,1742954848866,-500.0,0.0001315,2]
[356687299,1742954848888,-500.0,0.0001315,2]
[356687300,1742954848909,-1190.97,0.0001315,2]
[356687301,1742954848930,-587.0,0.0001323,2]
[356687302,1742954848950,-500.0,0.00013269,2]
[356687303,1742954848975,-12458.93820146,0.00013419,2]
[356687304,1742954848995,-160.0,0.00013421,2]
[356687305,1742954849016,-500.0,0.00013422,2]
[356687306,1742954849037,-547.08,0.00013422,2]
[356687307,1742954849060,-693.22,0.00013423,2]
[356687308,1742954849080,-500.0,0.00013423,2]
[356687309,1742954849101,-500.0,0.00013423,2]
[356687310,1742954849123,-500.0,0.00013423,2]
[356687311,1742954849145,-697.2,0.00013423,2]
[356687312,1742954849166,-500.0,0.00013423,2]
[356687313,1742954849187,-500.0,0.00013424,2]
[356687314,1742954849207,-500.0,0.00013424,2]
[356687315,1742954849228,-500.0,0.00013424,2]
[356687316,1742954849248,-500.0,0.00013424,2]
[356687317,1742954849270,-500.0,0.00013424,2]
[356687318,1742954849292,-500.0,0.00013424,2]
[356687319,1742954849315,-1126.4,0.00013424,2]
[356687320,1742954849337,-500.0,0.00013424,2]
[356687321,1742954849359,-182.90167155,0.00013424,2]
[356687322,1742954849381,-1284.23,0.00013424,2]
[356687323,1742954849403,-1785.78,0.00013424,2]
[356687324,1742954849424,-875.91,0.00013424,2]
[356687325,1742954849446,-829.59,0.00013424,2]
[356687326,1742954849468,-759.65,0.00013424,2]
[356687327,1742954849490,-663.02,0.00013424,2]
[356687328,1742954849512,-500.0,0.00013424,2]
[356687329,1742954849535,-500.0,0.00013424,2]
[356687330,1742954849557,-500.0,0.00013424,2]
[356687331,1742954849579,-1190.97,0.00013424,2]